Cogmind - Beta 12 @@@ ROGUE MODE // 2023.03.07 @ 21:42:01 Player: ChromeKnight Result: Destroyed by D-53 Grenadier with Mini Grenade Launcher Performance ------------- Evolutions (0) 0 Regions Visited (4) 800 Robots Destroyed (5) 25 Value Destroyed (47) 47 Prototype IDs (2) 40 Alien Tech Used (0) 0 Bonus (85) 85 TOTAL SCORE: 997 Bonus ------- Follower Combat Kills 85 Cogmind --------- Core Integrity 0/250 Matter 280/300 Energy 62/100 System Corruption 0% Temperature Cool (0) Movement Walking (45) Location -9/Mines Parts ------- > --- POWER (1) -------- (None) > --- PROPULSION (2) --- Potential Leg Potential Leg > --- UTILITY (2) ------ Improved Heat Sink Small Storage Unit > --- WEAPON (2) ------- Beamcaster Makeshift Sword > --- INVENTORY (8) ---- Makeshift Sensor Array Experimental Sensor Array Makeshift Hacking Suite Makeshift System Shield Gauss Rifle Peak State ------------ > --- POWER ------------ (None) > --- PROPULSION ------- Potential Leg Potential Leg > --- UTILITY ---------- Improved Heat Sink Small Storage Unit > --- WEAPON ----------- Beamcaster Makeshift Sword > --- INVENTORY -------- Makeshift Sensor Array Experimental Sensor Array Makeshift Hacking Suite Makeshift System Shield Gauss Rifle [Rating: 35] Favorites ----------- Power Light Angular Momentum Engine Engine Light Angular Momentum Engine Propulsion Aluminum Leg Leg Aluminum Leg Utility Small Storage Unit Device Improved Heat Sink Storage Small Storage Unit Weapon Beamcaster Energy Gun Beamcaster Ballistic Gun Light Assault Rifle Impact Weapon Hammer Slashing Weapon Makeshift Sword Build | -11 -10 -10 -10 -9 ------- Run | Jun Mat Min Exi Min Slots Evolved . | . . . . . Power . | . . . . . Propulsion . | . . . . . Utility . | . . . . . Weapon . | . . . . . Parts Attached 22 | 6 1 9 4 2 Power 4 | 1 . 3 . . Engine 4 | 1 . 3 . . Core . | . . . . . Reactor . | . . . . . Propulsion 6 | 2 . 2 . 2 Treads . | . . . . . Leg 6 | 2 . 2 . 2 Wheel . | . . . . . Hover . | . . . . . Flight . | . . . . . Utility 4 | 1 . 1 2 . Device 3 | . . 1 2 . Storage 1 | 1 . . . . Processor . | . . . . . Hackware . | . . . . . Protection . | . . . . . Artifact . | . . . . . Weapon 8 | 2 1 3 2 . Energy Gun 4 | 2 1 1 . . Energy Cannon . | . . . . . Ballistic Gun 2 | . . 2 . . Ballistic Cannon . | . . . . . Launcher . | . . . . . Special Weapon . | . . . . . Impact Weapon 1 | . . . 1 . Slashing Weapon 1 | . . . 1 . Piercing Weapon . | . . . . . Special Melee Weapon . | . . . . . Unidentified Prototypes 2 | . . . 1 1 Parts Lost 1 | . . . . 1 Power 1 | . . . . 1 Propulsion . | . . . . . Utility . | . . . . . Weapon . | . . . . . Highest Loss Streak 1 | . . . . 1 To Critical Strikes . | . . . . . Average Slot Usage (%) 90 | . 85 84 97 94 Engine 13 | . 14 14 14 8 Leg 28 | . 28 28 28 28 Device 6 | . . . 14 14 Storage 14 | . 14 14 14 14 Energy Gun 18 | . 28 19 14 14 Ballistic Gun 3 | . . 7 . . Impact Weapon 3 | . . . 8 . Slashing Weapon 1 | . . . 3 14 Naked Turns . | . . . . . Heaviest Build 22 | 14 14 20 22 22 Greatest Support 60 | 20 20 35 35 60 Greatest Overweight (x) 2 | 2 . . . . Average Overweight (x) . | . . . . . Largest Inventory Capacity 8 | 8 8 8 8 8 Average Capacity 7 | 6 8 8 8 8 Most Carried 8 | . 1 8 8 8 Average Carried 5 | . . 5 6 6 Final Capacity 8 | 8 8 8 8 8 Final Carried 8 | . 1 4 8 5 Class Distribution -------------------- 54% | Mutant 45% | Scavenger-Mutant Dominant Class ---------------- Mutant | -10/Materials Mutant | -10/Mines Scavenger-Mutant | -10/Exiles Scavenger-Mutant | -9/Mines Resources | -11 -10 -10 -10 -9 ----------- Run | Jun Mat Min Exi Min Matter Collected 408 | 214 56 98 40 . Remotely . | . . . . . Salvage Created 252 | . . 148 104 . Parts 16 | . . 10 6 . Haulers Intercepted . | . . . . . Recyclers Shooed . | . . . . . Parts Field Recycled . | . . . . . Retrieved Matter . | . . . . . Parts Self-Destructed . | . . . . . Prevented . | . . . . . Kills | -11 -10 -10 -10 -9 ------- Run | Jun Mat Min Exi Min Combat Hostiles Destroyed 3 | . . 3 . . Guns 3 | . . 3 . . Classes Destroyed 3 | . . 3 . . Worker 1 | . . 1 . . Recycler 1 | . . 1 . . Swarmer 3 | . . 3 . . Best Kill Streak 3 | . . 3 . . Combat Bots Only 3 | . . 3 . . Max Kills in Single Turn 2 | . . 2 . . Gunslinging 1 | . . 1 . . Exploded . | . . . . . Melee . | . . . . . Uniques/NPCs Destroyed . | . . . . . Combat | -11 -10 -10 -10 -9 -------- Run | Jun Mat Min Exi Min Damage Taken 804 | . . 266 . 538 Core 262 | . . 86 . 176 Absorbed by Shields . | . . . . . Core Remaining (%) 100 | 100 . . . . Volleys Fired 18 | . . 15 3 . Largest 2 | . . 2 1 . Hottest 90 | . . 90 75 . Shots Fired 33 | . . 30 3 . Gun 33 | . . 30 3 . Cannon . | . . . . . Launcher . | . . . . . Special . | . . . . . Kinetic 8 | . . 8 . . Thermal 25 | . . 22 3 . Explosive . | . . . . . Electromagnetic . | . . . . . Robot Hit Streak 8 | . . 5 8 . Robot Miss Streak 8 | . . 8 . . Penetration Max . | . . . . . Secondary Targets 2 | . . 2 . . Max Gunslinging Chain 1 | . . 1 . . Shots Hit Robots 18 | . . 13 4 1 Core Hits 12 | . . 9 3 . Critical Kills . | . . . . . Critical Parts Destroyed . | . . . . . Critical Strikes . | . . . . . Melee Attacks 3 | . . . 1 2 Impact . | . . . . . Slashing 3 | . . . 1 2 Piercing . | . . . . . Sneak Attacks . | . . . . . Combat Hostiles . | . . . . . Follow-up Attacks . | . . . . . Damage Inflicted 300 | . . 125 137 38 Guns 186 | . . 125 61 . Cannons . | . . . . . Explosions . | . . . . . Melee 114 | . . . 76 38 Ramming . | . . . . . Kinetic 43 | . . 43 . . Thermal 143 | . . 82 61 . Explosive . | . . . . . Electromagnetic . | . . . . . Impact . | . . . . . Slashing 114 | . . . 76 38 Piercing . | . . . . . Highest Corruption . | . . . . . Average Corruption . | . . . . . Corruption Purged . | . . . . . Corruption Blocked . | . . . . . Overload Shots . | . . . . . Overflow Damage . | . . . . . Projectiles . | . . . . . Explosions . | . . . . . Melee . | . . . . . Knockbacks . | . . . . . Impact . | . . . . . Kinetic . | . . . . . Secondary . | . . . . . Self-Inflicted Damage . | . . . . . Shots . | . . . . . Rammed . | . . . . . Targets Rammed . | . . . . . Kicked . | . . . . . Crushed . | . . . . . Highest Temperature 240 | . . 240 30 . Average Temperature 85 | . . 93 17 . Received Heat Transfer 186 | . . 48 . 138 Siege Activations . | . . . . . Robots Corrupted . | . . . . . Combat Hostiles . | . . . . . Parts Fried . | . . . . . Impact Corruptions . | . . . . . Robots Melted . | . . . . . Combat Hostiles . | . . . . . Parts Melted . | . . . . . Heat Transferred 334 | . . 223 111 . Parts Sabotaged . | . . . . . Parts Stolen . | . . . . . Parts Stripped . | . . . . . Power Chain Reactions . | . . . . . Missiles Intercepted . | . . . . . Alert | -11 -10 -10 -10 -9 ------- Run | Jun Mat Min Exi Min Peak Influence 90 | . 15 90 . 36 Initial 5 | . . 5 . . Average 57 | . 6 76 . 15 Maximum Alert Level . | . . . . . Low Security (%) 100 | 100 100 100 . 100 Level 1 . | . . . . . Level 2 . | . . . . . Level 3 . | . . . . . Level 4 . | . . . . . Level 5 . | . . . . . High Security . | . . . . . Max Security . | . . . . . Squads Dispatched 1 | . 1 . . . Investigation 1 | . 1 . . . Extermination . | . . . . . Reinforcement . | . . . . . Assault . | . . . . . Garrison . | . . . . . Intercept . | . . . . . Searches Triggered . | . . . . . Construction Impeded . | . . . . . Haulers Reinforced . | . . . . . Active Scanning Responses . | . . . . . Cargo Convoy Interrupts . | . . . . . Stealth | -11 -10 -10 -10 -9 --------- Run | Jun Mat Min Exi Min Distress Signals . | . . . . . Communications Jammed . | . . . . . Distress Signals . | . . . . . Times Spotted 27 | . 2 8 . 17 Peak Tracking Total 12 | . 2 3 . 12 Tactical Retreats 3 | . . 1 . 2 Traps | -11 -10 -10 -10 -9 ------- Run | Jun Mat Min Exi Min Traps Triggered 1 | . 1 . . . Indirectly . | . . . . . Trap Hack Attempts . | . . . . . Triggered . | . . . . . Disarmed . | . . . . . Reprogrammed . | . . . . . Reused 1 | . . 1 . . Traps Extracted . | . . . . . Installed 3 | . . 3 . . Triggered 1 | . . 1 . . Most Traps Carried 4 | . . 4 1 1 Machines | -11 -10 -10 -10 -9 ---------- Run | Jun Mat Min Exi Min Machines Disabled 1 | . . . . 1 Max in Single Turn . | . . . . . Machines Repaired . | . . . . . Machines Sabotaged . | . . . . . Overloaded Fab Kills . | . . . . . Hacking | -11 -10 -10 -10 -9 --------- Run | Jun Mat Min Exi Min Machines Accessed . | . . . . . Terminals . | . . . . . Fabricators . | . . . . . Repair Stations . | . . . . . Recycling Units . | . . . . . Scanalyzers . | . . . . . Garrison Access . | . . . . . Total Hacks . | . . . . . Successful . | . . . . . Failed . | . . . . . Catastrophic . | . . . . . Database Lockouts . | . . . . . Manual 1 | . . . 1 . Terminals . | . . . . . Fabricators . | . . . . . Repair Stations . | . . . . . Recycling Units . | . . . . . Scanalyzers . | . . . . . Garrison Access . | . . . . . Terminal Hacks . | . . . . . Fabricator Hacks . | . . . . . Repair Station Hacks . | . . . . . Recycling Unit Hacks . | . . . . . Scanalyzer . | . . . . . Garrison Access Hacks . | . . . . . Unauthorized Hacks . | . . . . . Terminals . | . . . . . Fabricators . | . . . . . Repair Stations . | . . . . . Recycling Units . | . . . . . Scanalyzers . | . . . . . Garrison Access . | . . . . . Data Cores Recovered . | . . . . . Used . | . . . . . Hacking Detections . | . . . . . Full Trace Events . | . . . . . Feedback Events . | . . . . . Feedback Blocked . | . . . . . Robot Schematics Acquired . | . . . . . Robots Built . | . . . . . Authchips . | . . . . . Time . | . . . . . Total Robot Build Rating . | . . . . . Part Schematics Acquired . | . . . . . Parts Built . | . . . . . Authchips . | . . . . . Time . | . . . . . Total Part Build Rating . | . . . . . Parts Repaired . | . . . . . Time . | . . . . . Parts Recycled . | . . . . . Recycled Matter . | . . . . . Retrieved Matter . | . . . . . Retrieved Components . | . . . . . Parts Scanalyzed . | . . . . . Part Schematics Acquired . | . . . . . Parts Damaged . | . . . . . Bothacking | -11 -10 -10 -10 -9 ------------ Run | Jun Mat Min Exi Min Used RIF Installer . | . . . . . Robots Hacked . | . . . . . Non-combat . | . . . . . Combat . | . . . . . Robot Hacks Applied . | . . . . . Relay Couplers Released . | . . . . . Fabnet Peak Effective % . | . . . . . Robots Rewired 2 | . . . 2 . Allies Hacked . | . . . . . Hacks Repelled . | . . . . . Allies | -11 -10 -10 -10 -9 -------- Run | Jun Mat Min Exi Min Total Allies 4 | . . 2 2 . Largest Group 2 | . . 2 2 1 Highest-Rated Group 51 | . . 51 29 21 Highest-Rated Ally 31 | . . 31 21 21 Total Orders . | . . . . . Ally Attacks 23 | . . 20 . 3 Total Damage 406 | . . 330 . 76 Kills 3 | . . 2 . 1 Allies Corrupted 1 | . . . . 1 Allies Melted . | . . . . . Intel | -11 -10 -10 -10 -9 ------- Run | Jun Mat Min Exi Min Robot Analysis Total . | . . . . . Derelict Logs Recovered 1 | . . 1 . . Drone Launches . | . . . . . Drone Recoveries . | . . . . . Exploration | -11 -10 -10 -10 -9 ------------- Run | Jun Mat Min Exi Min Turns Passed 1550 | 55 156 692 599 48 Spaces Moved 1119 | 41 127 487 417 47 Core 13 | 13 . . . . Treads . | . . . . . Legs 1106 | 28 127 487 417 47 Wheels . | . . . . . Hover . | . . . . . Flight . | . . . . . Fastest Speed 45 | 50 120 120 130 45 Average Speed 122 | 114 120 120 130 84 Slowest Speed 150 | 150 120 130 130 130 Overloaded Moves 25 | . . . . 25 Propulsion Burnouts . | . . . . . Robots Hopped . | . . . . . Cave-ins Triggered . | . . . . . Exploration Rate (%) 44 | 4 28 80 87 22 Regions Visited 4 Branch Regions 3 Pre-discovered Areas 1 | . . 1 . . Known Exits Taken . | . . . . . Unknown Exits Taken 4 | 1 1 1 1 . Scrap Searched . | . . . . . Spaces Dug . | . . . . . Terrain Destroyed . | . . . . . Melee . | . . . . . Projectile . | . . . . . AOE . | . . . . . Terrain Rammed . | . . . . . Walls Destroyed . | . . . . . Machines Disabled . | . . . . . Actions | -11 -10 -10 -10 -9 --------- Run | Jun Mat Min Exi Min Total 1264 | 46 130 565 469 54 Wait 39 | . 1 30 8 . Move 1115 | 40 126 486 416 47 Hop . | . . . . . Pick Up 16 | . 1 10 5 . Fast Attach 13 | 6 1 5 1 . Attach 6 | . . 3 1 2 Detach . | . . . . . Swap 3 | . . 1 2 . Drop 17 | . 1 12 1 3 Fire 18 | . . 15 3 . Melee 3 | . . . 1 2 Ram . | . . . . . Kick . | . . . . . Crush . | . . . . . Escape Stasis . | . . . . . Rewire 31 | . . . 31 . Trap 3 | . . 3 . . Miscellaneous . | . . . . . Route ------- -11/Junkyard -10/Materials -10/Mines (discovered 2 exits: [*Mat] / *Exi) -10/Exiles -9/Mines History --------- Turn | Location | Event 16 | -11/Junkyard | Discovered new exit (range 15) 56 | -11/Junkyard | Entered Materials 201 | -10/Materials | Discovered new exit (range 10) 212 | -10/Materials | Entered Mines 275 | -10/Mines | Learned location of Storage (-7) 304 | -10/Mines | Build established: Mutant 329 | -10/Mines | Discovered new exit (range 3) 437 | -10/Mines | Found a hidden stash of uninstalled traps 855 | -10/Mines | Found a damaged Exp. Sensor Array with a note attached 857 | -10/Mines | Found Prototype Device 897 | -10/Mines | Deemed a non-threat by the Exiles lab entrance 899 | -10/Mines | Discovered new exit (range 5) 904 | -10/Mines | Entered Exiles 904 | -10/Exiles | Found Exiles lab destroyed 1021 | -10/Exiles | Identified Exp. Sensor Array 1158 | -10/Exiles | Build established: Scavenger-Mutant 1179 | -10/Exiles | Opened EX-Vault 1184 | -10/Exiles | Found Prototype Leg 1186 | -10/Exiles | Found Prototype Leg 1485 | -10/Exiles | Discovered new exit (range 10) 1503 | -10/Exiles | Entered Mines 1503 | -9/Mines | Accompanied by 2 allies 1504 | -9/Mines | Assembled infested the area 1521 | -9/Mines | Met a Derelict bent on vengeance 1538 | -9/Mines | Identified Potential Leg (x2) 1540 | -9/Mines | Core integrity fell below 50% 1550 | -9/Mines | Core integrity fell below 20% 1551 | -9/Mines | Destroyed by D-53 Grenadier with Mini Grenade Launcher Last Messages --------------- 01504_ Mercenary 1a destroyed. 01504_ G-34 Mercenary destroyed. 01504_ Laser Drill disabled. 01508_ G-34 Mercenary destroyed. 01509_ Commando 1a system corrupted by crushing effect. 01509_ Penetrated by Slug. 01510_ Commando 1a system terminally corrupted. 01511_ G-47 Trooper destroyed. 01514_ Dropped Heavy Explosive Trap. 01528_ T-07 Excavator destroyed. 01528_ Seismic Survey Station disabled. 01531_ T-07 Excavator destroyed. 01537_ Dropped Carbon-fiber Leg. 01537_ Dropped Mak. Leg. 01538_ Lgt. Angular Momentum Engine destroyed. 01538_ Identified Potential Leg. 01540_ Knocked back. 01542_ Seismic Survey Station disabled. 01549_ C-30 ARC bursts open, deploying its payload. 01549_ D-53 Grenadier unfolds itself. Map ----- +----------------------------------------------------+ | ??????????????????????????????????????? #?? | | ???????????????????????????????????????# #?? | | ???????????????????????????????????????# ##? | | ??????????????????????????????????????## #? | | ?????????????????????????????????????## #? | | ?????????????????????????????????????# #?? | | ????????????????#################???## = #??? | | ????????????????# #?### = #??? | | ????????????????# """ """ """ ### #??? | | ????????????????# """&""" """ ## #??? | | ??????????### ### """*""" "" ## ##??? | | ???????? $ [%=%=! |= ##???? | | ???????????????## =%=%=""" """ % !%* ##????? | | ????????????????# =%["" """ !#### #?????? | | ????????????????# * " "" #?## #?????? | | ????????????????# a #?# #?????? | | ????????????????# #?# ##?????? | | ????????????????# ### ##??????? | | ????????????????####### #### #???????? | | ??????????????????????# ### ##??????? | | ??????????????????????## #??????? | | ?????????????# ######## #### #????? | | ?????????????# #??## #???? | | ??????????????######## #???## #??? | | ?????????????????????## ##????# #?? | | ??????????????????????###@ ###?????## #?? | | ???????????????????????# #???????? # #?? | | ???????????????????????# #???????? ## ##?? | | ???????????????????????# d #???????? #?###??? | | ???????????????????????# d% ???????? #??????? | | ???????????????????????# ??????? ??????? | | ??????????????????????? #?????? ??????? | | ???????????????????????## ##??????? #?????? | | ????????????????????????## ##????????????????? | | ?????????????????????????? #?????????????????? | | ?????????????????????????? #?????????????????? | | ?????????????????????????? #?????????????????? | | ?????????????????????????? #?????????????????? | | ??????????????????????????t ?????????????????? | | ?????????????????????????? ?????????????????? | | ?????????????????????????? ??????????????????? | | ??????????????????????????????????????????????? | | ??????????????????????????????????????????????? | | ??????????????????????????????????????????????? | | ??????????????????????????????????????????????? | | ??????????????????????????????????????????????? | | ??????????????????????????????????????????????? | | ??????????????????????????????????????????????? | | ??????????????????????????????????????????????? | | ??????????????????????????????????????????????? | +----------------------------------------------------+ Best States ------------- Heat Dissipation 39 Energy Generation 18 Energy Capacity 250 Matter Stores 300 Matter Capacity 300 Sight Range 16 Terrain Scan Density 10 Evasion (%) 66 Item Schematics ----------------- None Robot Schematics ------------------ None Fabricated ------------ Nothing Alien Tech Used ----------------- None Achievements -------------- None Challenges ------------ None Game ------ Seed ShieldLinearSource Manual? 0 Play Time 00:07:49 Cumulative 393.3 hours Start 2023.03.07 @ 15:27:10 End 2023.03.07 @ 21:42:01 Sessions 2 Manual Loads 0 Difficulty Rogue Special Mode None Game No. 705 Rogue 550 Adventurer 148 Explorer 7 Win Type - Total 16 Types 14/0/1/1/0/0/0/0/0 Lore% 77 Gallery% 87 Achievement% 72 Wizard Run 0 Options --------- ASCII 0 Keyboard 0 Movement Numpad Keybinds 0 Fullscreen 2 Font 18/SmallcapsGlow Map View 76x50 Tactical HUD 1 Map Filters NONE Filters NONE Steam 1 RUN: af29e786-bc2e-4d32-a3a0-084d3e16a5b7